Cogmind - Beta 9.6 @@@ ROGUE MODE // 2020.06.13 @ 18:27:59 Player: Kenzurith Result: Destroyed by as-70718 with Assembled Heavy Rifle Performance ------------- Evolutions (0) 0 Regions Visited (4) 800 Robots Destroyed (25) 125 Value Destroyed (269) 269 Prototype IDs (3) 60 Alien Tech Used (0) 0 Bonus (300) 300 TOTAL SCORE: 1554 Bonus ------- Aligned with FarCom 300 Cogmind --------- Core Integrity 0/250 Matter 190/300 Energy 58/100 System Corruption 2% Temperature Cool (0) Movement Walking (210) Ox3 Location -9/Mines Parts ------- > --- POWER (1) -------- (None) > --- PROPULSION (2) --- Aluminum Leg Aluminum Leg > --- UTILITY (2) ------ High-capacity Storage Unit High-capacity Storage Unit > --- WEAPON (2) ------- Assault Rifle > --- INVENTORY (20) --- Ion Engine Light Nuclear Core Light Treads Aluminum Leg Aluminum Leg Heat Sink Large Storage Unit High-capacity Storage Unit High-capacity Storage Unit High-capacity Storage Unit High-capacity Storage Unit High-capacity Matter Pod (200) Guided Plasma Cannon Assault Rifle Peak State ------------ > --- POWER ------------ Light Nuclear Core > --- PROPULSION ------- Light Treads Light Treads > --- UTILITY ---------- High-capacity Storage Unit High-capacity Storage Unit > --- WEAPON ----------- AWS/Gauss > --- INVENTORY -------- Ion Engine Ion Engine Light Nuclear Core Light Treads Aluminum Leg Aluminum Leg Aluminum Leg Aluminum Leg Heat Sink Large Storage Unit High-capacity Storage Unit High-capacity Storage Unit High-capacity Storage Unit High-capacity Storage Unit High-capacity Matter Pod Weight Redist. System Assault Rifle Assault Rifle Assault Rifle Assault Rifle [Rating: 25] Favorites ----------- Power Light Nuclear Core Engine Ion Engine Power Core Light Nuclear Core Propulsion Light Treads Treads Light Treads Leg Aluminum Leg Utility High-capacity Storage Unit Device Tractor Beam Storage High-capacity Storage Unit Processor Targeting Computer Weapon Assault Rifle Energy Gun Medium Laser Energy Cannon Guided Plasma Cannon Ballistic Gun Assault Rifle Launcher Rocket Launcher Special Weapon Field Lobotomy Kit Build | -11 -10 -10 -10 -9 ------- Run | Scr Mat Min Exi Min Slots Evolved . | . . . . . Power . | . . . . . Propulsion . | . . . . . Utility . | . . . . . Weapon . | . . . . . Parts Attached 28 | 6 9 . 4 9 Power 3 | 1 1 . . 1 Engine 2 | 1 . . . 1 Core 1 | . 1 . . . Reactor . | . . . . . Propulsion 7 | 2 3 . . 2 Treads 2 | . 2 . . . Leg 5 | 2 1 . . 2 Wheel . | . . . . . Hover . | . . . . . Flight . | . . . . . Utility 5 | 1 4 . . . Device 1 | . 1 . . . Storage 3 | 1 2 . . . Processor 1 | . 1 . . . Hackware . | . . . . . Protection . | . . . . . Artifact . | . . . . . Weapon 13 | 2 1 . 4 6 Energy Gun 1 | 1 . . . . Energy Cannon 1 | . . . 1 . Ballistic Gun 8 | 1 1 . 2 4 Ballistic Cannon . | . . . . . Launcher 2 | . . . . 2 Special Weapon 1 | . . . 1 . Impact Weapon . | . . . . . Slashing Weapon . | . . . . . Piercing Weapon . | . . . . . Special Melee Weapon . | . . . . . Unidentified Prototypes 3 | . . . 3 . Parts Lost 9 | . 1 . . 8 Power 3 | . 1 . . 2 Propulsion 2 | . . . . 2 Utility . | . . . . . Weapon 4 | . . . . 4 Highest Loss Streak 8 | . 1 . . 8 Average Slot Usage (%) 98 | . 96 100 98 99 Engine 3 | . 9 . . . Core 10 | . 3 14 14 13 Treads 19 | . 5 28 28 27 Leg 8 | . 22 . . . Device 1 | . 5 . . . Storage 23 | . 16 28 28 28 Processor 1 | . 3 . . . Energy Cannon 4 | . . . 7 12 Ballistic Gun 22 | . 26 28 18 14 Naked Turns . | . . . . . Heaviest Build 81 | 13 73 73 81 81 Greatest Support 40 | 20 40 40 40 40 Greatest Overweight (x) 4 | 4 1 1 2 2 Average Overweight (x) . | . . 1 1 1 Largest Inventory Capacity 20 | 6 20 20 20 20 Average Capacity 15 | 5 8 20 20 20 Most Carried 20 | 6 14 19 20 20 Average Carried 14 | 2 7 17 19 19 Final Capacity 20 | 6 20 20 20 20 Final Carried 20 | 6 14 19 20 14 Class Distribution -------------------- 68% | Hauler-Mutant 31% | Mutant Dominant Class ---------------- Mutant | -10/Materials Hauler-Mutant | -10/Mines Hauler-Mutant | -10/Exiles Hauler-Mutant | -9/Mines Resources | -11 -10 -10 -10 -9 ----------- Run | Scr Mat Min Exi Min Matter Collected 623 | 260 216 113 . 34 Remotely 88 | . 88 . . . Salvage Created 492 | . 241 183 . 68 Parts 30 | . 18 12 . . Haulers Intercepted 1 | . 1 . . . Recyclers Shooed . | . . . . . Parts Field Recycled . | . . . . . Retrieved Matter . | . . . . . Parts Self-Destructed . | . . . . . Prevented . | . . . . . Kills | -11 -10 -10 -10 -9 ------- Run | Scr Mat Min Exi Min Combat Hostiles Destroyed 22 | . 6 5 . 11 Melee 1 | . . 1 . . Guns 13 | . 6 4 . 3 AOE 8 | . . . . 8 Classes Destroyed 6 | . 4 1 . 1 Builder 1 | . 1 . . . Hauler 1 | . 1 . . . Recycler 1 | . . 1 . . Swarmer 6 | . 3 3 . . Grunt 5 | . 3 2 . . Assembled 11 | . . . . 11 Best Kill Streak 11 | . 3 3 . 11 Combat Bots Only 11 | . 3 3 . 11 Max Kills in Single Turn 5 | . 1 1 . 5 Gunslinging 1 | . . . . 1 Exploded 5 | . . . . 5 Melee 1 | . . 1 . . Uniques/NPCs Destroyed . | . . . . . Combat | -11 -10 -10 -10 -9 -------- Run | Scr Mat Min Exi Min Damage Taken 1418 | . 302 159 . 957 Core 264 | . 44 33 . 187 Absorbed by Shields . | . . . . . Core Remaining (%) 100 | 100 . . . . Volleys Fired 47 | . 26 15 . 6 Largest 2 | . 2 2 . 2 Hottest 53 | . 40 40 . 53 Shots Fired 92 | . 52 30 . 10 Gun 89 | . 52 30 . 7 Cannon . | . . . . . Launcher 3 | . . . . 3 Special . | . . . . . Kinetic 89 | . 52 30 . 7 Thermal . | . . . . . Explosive 3 | . . . . 3 Electromagnetic . | . . . . . Robot Hit Streak 12 | . 12 7 . 7 Robot Miss Streak 3 | . 2 3 . 1 Penetration Max . | . . . . . Secondary Targets 2 | . 1 . . 1 Max Gunslinging Chain 1 | . 1 . . 1 Shots Hit Robots 55 | . 27 22 . 6 Core Hits 38 | . 12 9 . 17 Critical Hits . | . . . . . Critical Kills . | . . . . . Critical Parts Destroyed . | . . . . . Melee Attacks . | . . . . . Impact . | . . . . . Slashing . | . . . . . Piercing . | . . . . . Sneak Attacks . | . . . . . Combat Hostiles . | . . . . . Follow-up Attacks . | . . . . . Damage Inflicted 1283 | . 347 293 . 643 Guns 694 | . 347 290 . 57 Cannons . | . . . . . Explosions 586 | . . . . 586 Melee . | . . . . . Ramming 3 | . . 3 . . Kinetic 694 | . 347 290 . 57 Thermal . | . . . . . Explosive 586 | . . . . 586 Electromagnetic . | . . . . . Impact . | . . . . . Slashing . | . . . . . Piercing . | . . . . . Highest Corruption 2 | . 2 2 2 2 Average Corruption 1 | . 1 2 2 2 Corruption Purged . | . . . . . Effects 10 | . 2 3 3 2 Message Errors 3 | . 1 . 1 1 Heat Flow Errors 1 | . . 1 . . Energy Discharges 3 | . 1 1 1 . Data Loss (minor) 3 | . . 1 1 1 Overload Shots . | . . . . . Overflow Damage 42 | . . . . 42 Projectiles . | . . . . . Explosions 42 | . . . . 42 Melee . | . . . . . Knockbacks . | . . . . . Impact . | . . . . . Kinetic . | . . . . . Secondary . | . . . . . Self-Inflicted Damage 30 | . . . . 30 Shots 1 | . . . . 1 Rammed . | . . . . . Targets Rammed 1 | . . 1 . . Kicked . | . . . . . Crushed 1 | . . 1 . . Highest Temperature 271 | . 2 271 . 24 Average Temperature 71 | . 2 102 . 11 Received Heat Transfer 271 | . 57 54 . 160 Effects 1 | . . 1 . . Interference 1 | . . 1 . . Siege Activations . | . . . . . Robots Corrupted . | . . . . . Combat Hostiles . | . . . . . Parts Fried . | . . . . . Impact Corruptions . | . . . . . Robots Melted . | . . . . . Combat Hostiles . | . . . . . Parts Melted . | . . . . . Heat Transferred . | . . . . . Parts Sabotaged . | . . . . . Parts Stolen . | . . . . . Parts Stripped . | . . . . . Power Chain Reactions . | . . . . . Missiles Intercepted . | . . . . . Alert | -11 -10 -10 -10 -9 ------- Run | Scr Mat Min Exi Min Peak Influence 161 | . 141 161 . . Average Influence 49 | . 41 134 . . Maximum Alert Level . | . . . . . Low Security (%) 100 | 100 100 100 . 100 Level 1 . | . . . . . Level 2 . | . . . . . Level 3 . | . . . . . Level 4 . | . . . . . Level 5 . | . . . . . High Security . | . . . . . Max Security . | . . . . . Squads Dispatched 1 | . 1 . . . Investigation . | . . . . . Extermination . | . . . . . Reinforcement 1 | . 1 . . . Assault . | . . . . . Garrison . | . . . . . Intercept . | . . . . . Construction Impeded . | . . . . . Haulers Reinforced . | . . . . . Stealth | -11 -10 -10 -10 -9 --------- Run | Scr Mat Min Exi Min Distress Signals . | . . . . . Communications Jammed . | . . . . . Distress Signals . | . . . . . Times Spotted 34 | . 11 5 . 18 Peak Tracking Total 19 | . 4 3 . 19 Tactical Retreats 1 | . . . . 1 Traps | -11 -10 -10 -10 -9 ------- Run | Scr Mat Min Exi Min Traps Triggered 2 | . 2 . . . Indirectly . | . . . . . Trap Hack Attempts . | . . . . . Triggered . | . . . . . Disarmed . | . . . . . Reprogrammed . | . . . . . Reused . | . . . . . Traps Extracted . | . . . . . Installed . | . . . . . Triggered . | . . . . . Machines | -11 -10 -10 -10 -9 ---------- Run | Scr Mat Min Exi Min Machines Disabled . | . . . . . Max in Single Turn . | . . . . . Machines Sabotaged . | . . . . . Garrisons Compromised . | . . . . . Overloaded Fab Kills . | . . . . . Fab Network Shutdowns . | . . . . . Hacking | -11 -10 -10 -10 -9 --------- Run | Scr Mat Min Exi Min Machines Accessed 5 | . 5 . . . Terminals 5 | . 5 . . . Fabricators . | . . . . . Repair Stations . | . . . . . Recycling Units . | . . . . . Scanalyzers . | . . . . . Garrison Access . | . . . . . Total Hacks 10 | . 10 . . . Successful 3 | . 3 . . . Failed 7 | . 7 . . . Catastrophic 3 | . 3 . . . Database Lockouts . | . . . . . Manual 11 | . 10 . 1 . Terminals 10 | . 10 . . . Fabricators . | . . . . . Repair Stations . | . . . . . Recycling Units . | . . . . . Scanalyzers . | . . . . . Garrison Access . | . . . . . Terminal Hacks 3 | . 3 . . . Branch Access Points 1 | . 1 . . . Recall Investigation 1 | . 1 . . . Registered Components 1 | . 1 . . . Fabricator Hacks . | . . . . . Repair Station Hacks . | . . . . . Recycling Unit Hacks . | . . . . . Scanalyzer . | . . . . . Garrison Access Hacks . | . . . . . Unauthorized Hacks . | . . . . . Terminals . | . . . . . Fabricators . | . . . . . Repair Stations . | . . . . . Recycling Units . | . . . . . Scanalyzers . | . . . . . Garrison Access . | . . . . . Data Cores Recovered . | . . . . . Used . | . . . . . Hacking Detections 5 | . 5 . . . Full Trace Events 1 | . 1 . . . Feedback Events . | . . . . . Feedback Blocked . | . . . . . Robot Schematics Acquired . | . . . . . Robots Built . | . . . . . Matter . | . . . . . Time . | . . . . . Total Robot Build Rating . | . . . . . Part Schematics Acquired . | . . . . . Parts Built . | . . . . . Matter . | . . . . . Time . | . . . . . Total Part Build Rating . | . . . . . Parts Repaired . | . . . . . Time . | . . . . . Parts Recycled . | . . . . . Recycled Matter . | . . . . . Retrieved Matter . | . . . . . Retrieved Components . | . . . . . Parts Scanalyzed . | . . . . . Part Schematics Acquired . | . . . . . Parts Damaged . | . . . . . Bothacking | -11 -10 -10 -10 -9 ------------ Run | Scr Mat Min Exi Min Used RIF Installer . | . . . . . Robots Hacked . | . . . . . Non-combat . | . . . . . Combat . | . . . . . Robot Hacks Applied . | . . . . . Relay Couplers Released . | . . . . . Robots Rewired . | . . . . . Allies Hacked . | . . . . . Hacks Repelled . | . . . . . Allies | -11 -10 -10 -10 -9 -------- Run | Scr Mat Min Exi Min Total Allies . | . . . . . Largest Group . | . . . . . Highest-Rated Group . | . . . . . Highest-Rated Ally . | . . . . . Total Orders . | . . . . . Ally Attacks . | . . . . . Total Damage . | . . . . . Kills . | . . . . . Allies Corrupted . | . . . . . Allies Melted . | . . . . . Intel | -11 -10 -10 -10 -9 ------- Run | Scr Mat Min Exi Min Robot Analysis Total . | . . . . . Derelict Logs Recovered 1 | . . . . 1 Drone Launches . | . . . . . Drone Recoveries . | . . . . . Exploration | -11 -10 -10 -10 -9 ------------- Run | Scr Mat Min Exi Min Turns Passed 1834 | 74 619 316 462 363 Spaces Moved 974 | 44 382 141 239 168 Core 14 | 14 . . . . Treads 609 | . 61 141 239 168 Legs 351 | 30 321 . . . Wheels . | . . . . . Hover . | . . . . . Flight . | . . . . . Fastest Speed 50 | 50 120 180 180 180 Average Speed 163 | 135 129 180 190 199 Slowest Speed 250 | 250 180 180 200 200 Overloaded Moves . | . . . . . Propulsion Burnouts . | . . . . . Robots Hopped . | . . . . . Cave-ins Triggered . | . . . . . Exploration Rate (%) 39 | 5 59 28 65 40 Regions Visited 4 Branch Regions 3 Pre-discovered Areas 1 | . . . . 1 Known Exits Taken 1 | . 1 . . . Unknown Exits Taken 3 | 1 . 1 1 . Scrap Searched 1 | . . . . 1 Spaces Dug . | . . . . . Terrain Destroyed 21 | . . . . 21 Melee . | . . . . . Projectile . | . . . . . AOE 21 | . . . . 21 Actions | -11 -10 -10 -10 -9 --------- Run | Scr Mat Min Exi Min Total 1119 | 55 458 173 248 185 Wait 30 | . 18 12 . . Move 970 | 43 381 140 238 168 Hop . | . . . . . Pick Up 26 | 6 13 5 1 1 Fast Attach 15 | 6 5 . 4 . Attach 8 | . 2 . . 6 Detach 3 | . 2 . 1 . Swap 5 | . 2 . . 3 Drop 14 | . 9 . 4 1 Fire 47 | . 26 15 . 6 Melee . | . . . . . Ram . | . . . . . Kick . | . . . . . Crush 1 | . . 1 . . Escape Stasis . | . . . . . Rewire . | . . . . . Trap . | . . . . . Miscellaneous . | . . . . . Route ------- -11/Scrapyard -10/Materials (discovered 3 exits: [*Mat x2] / *Min) -10/Mines -10/Exiles -9/Mines History --------- Turn | Location | Event 27 | -11/Scrapyard | Discovered new exit (range 16) 75 | -11/Scrapyard | Entered Materials 166 | -10/Materials | Identified exit to Mines 304 | -10/Materials | Build established: Mutant 360 | -10/Materials | Discovered new exit (range 5) 486 | -10/Materials | Discovered new exit (range 3) 694 | -10/Materials | Entered Mines 871 | -10/Mines | Build established: Hauler-Mutant 1001 | -10/Mines | Deemed a non-threat by the Exiles lab entrance 1003 | -10/Mines | Discovered new exit (range 5) 1010 | -10/Mines | Entered Exiles 1055 | -10/Exiles | Met 8R-AWN 1081 | -10/Exiles | Met EX-HEX 1133 | -10/Exiles | Met EX-BIN 1154 | -10/Exiles | Aligned with FarCom system 1156 | -10/Exiles | Given EX-Vault access code 1199 | -10/Exiles | Opened EX-Vault 1211 | -10/Exiles | Found Prototype Ballistic Gun 1211 | -10/Exiles | Identified AWS/Gauss 1215 | -10/Exiles | Found Prototype Special Weapon 1215 | -10/Exiles | Identified Field Lobotomy Kit 1222 | -10/Exiles | Found Prototype Energy Cannon 1222 | -10/Exiles | Identified Gui. Plasma Cannon 1274 | -10/Exiles | Warned to stay clear of 0b10 Research branches 1287 | -10/Exiles | Exiles lab attacked by MAIN.C 1454 | -10/Exiles | Discovered new exit (range 10) 1472 | -10/Exiles | Left Exiles lab with Gui. Plasma Cannon 1472 | -10/Exiles | Entered Mines 1479 | -9/Mines | Received a Rocket Launcher from a helpful Derelict 1562 | -9/Mines | Learned location of Storage (-8) 1793 | -9/Mines | Assembled infested the area 1798 | -9/Mines | Assisted by a Guerilla fighting off Assembled 1818 | -9/Mines | Core integrity fell below 50% 1828 | -9/Mines | Core integrity fell below 20% 1835 | -9/Mines | Destroyed by as-70718 with Assembled Heavy Rifle Last Messages --------------- 01817_ as-36312 destroyed. 01817_ as-96411 destroyed. 01817_ as-87014 destroyed. 01817_ Destroyed Asb. Hover Unit. 01820_ Lgt. Nuclear Core destroyed. 01820_ as-73716 destroyed. 01820_ as-64852 destroyed. 01820_ Destroyed Asb. Hover Unit. 01820_ Destroyed Asb. F-torch. 01820_ as-80607 destroyed. 01820_ as-83117 destroyed. 01820_ as-60672 destroyed. 01823_ Lgt. Treads destroyed. 01824_ Rocket Launcher destroyed. 01830_ Assault Rifle destroyed. 01831_ Ion Engine destroyed. 01831_ Assault Rifle destroyed. 01831_ as-84035 destroyed. 01832_ System corrupted: Component data lost. 01833_ Destroyed Asb. Hover Unit. Map ----- +----------------------------------------------------+ | ???????????????????????????????# #??? | | ???????????????????????????????####### #### ###??? | | ??????????????????????????????????#### #?????????? | | ??????????????????????????????????# #??#??????? | | ??????????????????????####????????# ####??# ?????? | | ?????????????????????## ##???????# #?????# ###### | | ?????????????????????# #???????# #?###?# | | ?????????????????????# ######### ### ##### ### | | ????????????????????## ## #??# #?? | | ??????????????????### ###### ##### #??# #?? | | ?????????????????## #?????# #???# #??# #?? | | ?????????????????# ####### #????# ##?# #?? | | ?????????????????# #?????# ### #?? | | ?????????????????## # #### ##????# ![#?? | | ??????????????????#### ## #?## ##??## #?? | | ?????????????????????###### #?# #### #?? | | ????????????##????????????# ### #?? | | ????????????# ???????????# | ! ##?# | | ????????????# ???????????###### ##??# | | ????????????# ######??????????# [ ##???# | | ????????????# ##???####### ##????# | | ????????????# #??## ## ##???## | | ????????????# ??## ut #?### | | ????? ????## ??# ### | | ???? ### #### r | | ???? ## @ | | ??? aa a a% ## | | ??????# % a ### | | ???????# *% !a a = ##?## | | ???????# = = # #???# | | ??????# ## ##### #### ##??## | | ???????????# ??????# ##??# ## #??## | | ????????????#????????#####????# ### #??# | | ??????????????????????????????# #?# #??## | | ??????????????????????????????## ##?## ##???#### | | ???????????????????????????????#####???###???????? | | ?????????????????????????????????????????????????? | | | | | | | | | | | | | | | | | | | | | | | | | | | +----------------------------------------------------+ Best States ------------- Heat Dissipation 25 Energy Generation 14 Energy Capacity 250 Matter Stores 300 Matter Capacity 300 Sight Range 16 Terrain Scan Density 10 Evasion (%) 40 Targeting Accuracy 5 Recoil Reduction 2 Item Schematics ----------------- None Robot Schematics ------------------ None Fabricated ------------ Nothing Alien Tech Used ----------------- None Achievements -------------- None Challenges ------------ None Game ------ Seed MatterDirtySuite Manual? 0 Play Time 00:12:51 Cumulative 122.5 hours Start 2020.06.13 @ 18:16:59 End 2020.06.13 @ 18:27:59 Sessions 1 Manual Loads 0 Difficulty Rogue Special Mode None Game No. 67 Rogue 65 Adventurer 1 Explorer 1 Win Type - Total 1 Types 1/0/0/0/0/0/0 Lore% 48 Gallery% 66 Achievement% 48 Wizard Run 0 Options --------- ASCII 0 Keyboard 1 Movement Numpad Keybinds 0 Fullscreen 2 Font 24/Terminus Map View 76x50 Tactical HUD 1 Map Filters NONE Filters NONE Steam 1 RUN: 3af681e9-1f8f-4858-8df8-514797838276